Cogmind - Beta 11.1 @@@ ROGUE MODE // 2022.04.24 @ 12:01:04 Player: CrossedViper Result: Escaped! Performance ------------- Evolutions (9) 4500 Regions Visited (25) 5000 Robots Destroyed (378) 1890 Value Destroyed (13263) 13263 Prototype IDs (62) 1240 Alien Tech Used (0) 0 Bonus (7847) 7847 TOTAL SCORE: 33740 Bonus ------- High Alert Combat Kills 2754 Follower Combat Kills 1849 Aligned with FarCom 300 Met Imprinter 300 Built Enhanced Grunts 300 Met R17 at Cetus 500 Win 3000 Friendly Fire -1156 Cogmind --------- Core Integrity 765/1600 Matter 227/300 Energy 60/100 System Corruption 43% Temperature Cool (0) Movement Core (150) Ox2 Location To Epsilon Eridani Parts ------- > --- POWER (3) -------- (None) > --- PROPULSION (8) --- Centrium Leg Centrium Leg Centrium Leg Centrium Leg Centrium Leg > --- UTILITY (10) ----- Advanced Targeting Computer Armor Integrity Analyzer > --- WEAPON (4) ------- Smartbomb Launcher > --- INVENTORY (5) ---- Antimissile System Dirty Datajack (14) Peak State ------------ > --- POWER ------------ Particle Reactor Quantum Reactor Light Quantum Reactor > --- PROPULSION ------- Advanced Heavy Treads Centrium Heavy Treads Centrium Heavy Treads Centrium Heavy Treads > --- UTILITY ---------- Advanced Heat Sink Large Storage Unit Machine Analyzer Enhanced Optical Array Armor Integrity Analyzer Centrium Medium Armor Plating Centrium Medium Armor Plating Centrium Medium Armor Plating Graphene Brace Experimental Thermal Shield > --- WEAPON ----------- Advanced Variable Charge Gun Advanced KE Penetrator Advanced KE Penetrator Advanced KE Penetrator > --- INVENTORY -------- Advanced Heavy Treads Advanced Heavy Treads Advanced Heat Sink Advanced Variable Charge Gun Advanced Variable Charge Gun Enhanced Nova Cannon Long-range Missile Launcher Dirty Datajack Dirty Datajack Advanced Datajack RU-N14's Throwing Claymores [Rating: 198] Favorites ----------- Power Ion Engine Engine Ion Engine Power Core Enhanced Fission Core Reactor Quantum Reactor Propulsion Light Treads Treads Light Treads Leg Experimental Flexi-carbon Leg Wheel Wheel Hover Unit Cooled Gravmag System Flight Unit Cooled Cesium-ion Thruster Utility Advanced Heat Sink Device Advanced Heat Sink Storage High-capacity Storage Unit Processor Enhanced Optical Array Hackware Makeshift Hacking Suite Protection Centrium Medium Armor Plating Weapon Advanced KE Penetrator Energy Gun Advanced Variable Charge Gun Energy Cannon Enhanced Nova Cannon Ballistic Gun Advanced KE Penetrator Ballistic Cannon Light Cannon Launcher Grenade Launcher Special Weapon RU-N14's Throwing Claymores Slashing Weapon Chainsword Piercing Weapon Kinetic Spear Special Melee Weapon Dirty Datajack Build | -11 -10 -10 -10 -9 -8 -7 -7 -7 -6 -6 -6 -6 -6 -6 -5 -5 -5 -5 -4 -4 -4 -4 -3 -2 -1 ------- Run | Scr Mat Min Exi Min Mat Fac Was Fac Fac Was Fac Low Low Zio Pro Fac Was Fac Fac Ext Cet Arc Res Res Acc Slots Evolved 18 | . . . . . 4 2 . . 2 . . . . . . 2 . . 2 . . . 2 2 2 Power 2 | . . . . . . . . . 1 . . . . . . . . . . . . . 1 . . Propulsion 6 | . . . . . 1 . . . 1 . . . . . . 1 . . 1 . . . . . 2 Utility 8 | . . . . . 3 2 . . . . . . . . . 1 . . 1 . . . 1 . . Weapon 2 | . . . . . . . . . . . . . . . . . . . . . . . . 2 . Parts Attached 341 | 6 11 1 . 5 28 45 7 41 10 10 23 12 1 10 3 . 8 13 10 12 12 . 9 4 60 Power 36 | 1 1 . . . 3 1 . 3 1 . 2 3 . 2 . . 3 1 1 2 2 . . 1 9 Engine 17 | 1 1 . . . 3 1 . 1 . . 1 1 . 2 . . 2 1 . . . . . . 3 Core 7 | . . . . . . . . 2 1 . 1 2 . . . . . . . 1 . . . . . Reactor 12 | . . . . . . . . . . . . . . . . . 1 . 1 1 2 . . 1 6 Propulsion 96 | 2 3 . . . 5 20 2 12 6 1 7 6 . . . . 1 5 1 . 3 . . . 22 Treads 28 | 2 3 . . . 5 9 . . . . . . . . . . . . . . 3 . . . 6 Leg 32 | . . . . . . 4 2 4 3 1 5 . . . . . . . . . . . . . 13 Wheel 15 | . . . . . . 6 . 2 2 . . 2 . . . . . . . . . . . . 3 Hover 6 | . . . . . . . . . . . . . . . . . . 5 1 . . . . . . Flight 15 | . . . . . . 1 . 6 1 . 2 4 . . . . 1 . . . . . . . . Utility 92 | 1 3 1 . . 6 10 3 11 2 1 10 2 1 7 . . 1 3 7 4 5 . 1 1 12 Device 43 | . 2 . . . 3 4 1 6 1 . 6 1 . 2 . . 1 1 3 1 2 . . 1 8 Storage 10 | 1 1 1 . . 1 . . . . 1 1 . 1 1 . . . . . 1 . . 1 . . Processor 16 | . . . . . . 4 . 1 1 . 3 1 . . . . . 2 2 . . . . . 2 Hackware 3 | . . . . . . . . 1 . . . . . 1 . . . . . 1 . . . . . Protection 20 | . . . . . 2 2 2 3 . . . . . 3 . . . . 2 1 3 . . . 2 Artifact . | . . . . . . . . . . . . . . . . . . . . . . . . . . Weapon 117 | 2 4 . . 5 14 14 2 15 1 8 4 1 . 1 3 . 3 4 1 6 2 . 8 2 17 Energy Gun 27 | . 1 . . 1 6 1 . 3 1 4 2 . . . . . . . . . . . 3 1 4 Energy Cannon 2 | . . . . . . 1 . . . . . . . . . . . . . . . . . . 1 Ballistic Gun 45 | 2 2 . . 2 6 10 . 9 . . . . . . . . . . . . 2 . 4 1 7 Ballistic Cannon 3 | . 1 . . . . . . . . . . . . . . . . . . 1 . . . . 1 Launcher 18 | . . . . 2 2 2 1 3 . 3 2 . . . . . . 1 . . . . . . 2 Special Weapon 7 | . . . . . . . . . . . . . . . 2 . . . 1 4 . . . . . Impact Weapon . | . . . . . . . . . . . . . . . . . . . . . . . . . . Slashing Weapon 5 | . . . . . . . . . . . . . . 1 . . 1 3 . . . . . . . Piercing Weapon 4 | . . . . . . . 1 . . 1 . 1 . . 1 . . . . . . . . . . Special Melee Weapon 6 | . . . . . . . . . . . . . . . . . 2 . . 1 . . 1 . 2 Unidentified Prototypes 36 | . . . . . 4 8 1 7 . . 4 . . 1 1 . 1 1 1 . 4 . 1 . 2 Corrupted Parts 9 | . . . . . . . . . . . . . . . . . . . . . 6 . 3 . . System Corruption 65 | . . . . . . . . . . . . . . . . . . . . . 37 . 28 . . Parts Lost 103 | . 1 . . . 7 15 . 15 4 4 8 . 1 . 1 . . . 3 8 6 . . . 30 Power 22 | . . . . . 3 1 . 1 1 . 2 . 1 . . . . . 2 2 1 . . . 8 Propulsion 30 | . . . . . 2 7 . 6 1 2 3 . . . . . . . . 2 3 . . . 4 Utility 35 | . 1 . . . 1 5 . 7 1 1 1 . . . . . . . 1 4 1 . . . 12 Weapon 16 | . . . . . 1 2 . 1 1 1 2 . . . 1 . . . . . 1 . . . 6 Highest Loss Streak 11 | . 1 . . . 2 11 . 6 3 4 5 . 1 . 1 . . . 2 3 9 . . . 7 To Critical Strikes . | . . . . . . . . . . . . . . . . . . . . . . . . . . Average Slot Usage (%) 83 | . 98 100 74 98 79 92 59 75 65 58 85 82 83 92 87 76 86 93 94 88 72 84 76 82 79 Engine 6 | . 14 14 14 14 7 6 . 2 . . 4 6 1 7 6 5 5 5 7 . . . . . 2 Core 1 | . . . . . . . . 4 6 6 4 4 6 1 . . . . . 1 . . . . . Reactor 1 | . . . . . . . . . . . . . . . . . . . 1 5 8 10 9 10 7 Treads 13 | . 27 28 28 28 25 11 7 . . . . . . . . . . . . . 9 15 14 13 12 Leg 4 | . . . . . . 2 14 15 8 12 21 2 . . . . . . . . . . . . 3 Wheel 1 | . . . . . . 8 . 4 6 6 . 3 . . . . . . . . . . . . 3 Hover 1 | . . . . . . . . . . . . . . . . . . 1 31 30 5 . . . . Flight 2 | . . . . . . . . . 9 . . 16 26 26 26 23 27 26 . . . . . . . Device 11 | . 12 14 14 14 12 10 14 11 13 13 21 14 13 6 . . . 5 6 9 6 10 9 10 10 Storage 7 | . 14 14 14 14 9 7 7 7 6 3 4 2 2 1 6 5 5 5 5 5 8 5 4 4 3 Processor 8 | . . . . . . 18 . 2 . 3 16 23 26 26 26 23 23 23 19 15 15 15 14 13 13 Protection 4 | . . . . . 7 9 6 7 . . . . . 3 6 5 5 4 5 4 3 15 14 13 7 Energy Gun 3 | . 9 14 1 1 3 4 . 1 4 7 10 . . . . . . . . . . . 1 4 3 Ballistic Gun 8 | . 16 14 1 13 12 9 . 11 7 . . . . . . . . . . . 8 10 6 13 10 Launcher 1 | . . . . 11 1 . 6 . . 3 . . . . . . . . . . . . . . . Naked Turns . | . . . . . . . . . . . . . . . . . . . . . . . . . . Heaviest Build 124 | 13 31 91 91 91 95 77 98 113 70 71 42 32 98 23 23 21 23 28 61 63 86 86 96 124 124 Greatest Support 310 | 40 40 40 40 40 60 60 46 68 55 37 68 23 32 23 32 23 29 55 96 96 240 240 240 240 310 Greatest Overweight (x) 6 | . . 2 2 2 2 6 4 5 3 3 2 1 4 . . . . 2 . 1 1 . . . 6 Average Overweight (x) . | . . . 2 2 . 2 1 1 2 1 . . . . . . . . . . . . . . 1 Largest Inventory Capacity 25 | 8 15 25 25 25 25 20 20 20 20 25 10 10 25 10 10 10 10 10 10 10 10 10 15 15 15 Average Capacity 16 | 6 12 19 25 25 21 20 20 20 20 13 8 6 11 6 10 10 10 10 10 10 10 10 12 15 14 Most Carried 20 | 5 11 14 19 18 20 20 20 20 15 16 10 9 15 10 10 10 10 10 10 10 10 10 15 14 15 Average Carried 13 | 2 8 13 16 16 17 18 18 19 13 9 7 6 6 6 9 9 9 9 9 8 9 10 12 13 12 Final Capacity 25 | 8 15 25 25 25 20 20 20 20 20 5 10 5 5 10 10 10 10 10 10 10 10 10 15 15 5 Final Carried 20 | 4 11 14 18 16 20 15 19 15 14 5 10 5 5 10 10 10 9 10 10 7 10 10 15 14 2 Class Distribution -------------------- 44% | Mutant 20% | Scavenger-Mutant 10% | Scavenger-Tank 6% | Scavenger-Skirmisher 5% | Derelict-Sprinter 3% | Scout Dominant Class ---------------- Mutant | -10/Materials Mutant | -10/Mines Mutant | -10/Exiles Mutant | -9/Mines Scavenger-Mutant | -8/Materials Scavenger-Mutant | -7/Factory Mutant | -7/Waste Mutant | -7/Factory Scavenger-Mutant | -6/Factory Scavenger-Mutant | -6/Waste Scavenger-Skirmisher | -6/Factory Scavenger-Sprinter | -6/Lower Caves Mutant | -6/Lower Caves Derelict-Sprinter | -6/Zion Derelict-Sprinter | -5/Proximity Caves Derelict-Sprinter | -5/Factory Derelict-Sprinter | -5/Waste Derelict-Sprinter | -5/Factory Scout | -4/Factory Scout | -4/Extension Scavenger-Skirmisher | -4/Cetus Scavenger-Skirmisher | -4/Archives Scavenger-Skirmisher | -3/Research Scavenger-Tank | -2/Research Scavenger-Tank | -1/Access Resources | -11 -10 -10 -10 -9 -8 -7 -7 -7 -6 -6 -6 -6 -6 -6 -5 -5 -5 -5 -4 -4 -4 -4 -3 -2 -1 ----------- Run | Scr Mat Min Exi Min Mat Fac Was Fac Fac Was Fac Low Low Zio Pro Fac Was Fac Fac Ext Cet Arc Res Res Acc Matter Collected 8458 | 250 338 20 29 193 603 828 464 886 234 337 454 189 . 15 18 . 181 196 110 90 356 52 64 193 2358 Remotely 94 | . . . . . . . . . . . . 94 . . . . . . . . . . . . . Salvage Created 17224 | 43 538 . . 395 644 2055 1226 2063 405 943 620 180 50 . 44 . 39 235 504 962 437 75 102 80 5584 Parts 817 | 7 29 . . 52 46 128 8 105 20 3 40 12 4 . 5 . 1 11 42 33 12 3 2 . 254 Haulers Intercepted 21 | . 2 . . . 3 5 . 1 . . 1 . . . . . . 2 . . . . 1 . 6 Recyclers Shooed 21 | . . . . . 2 . . 4 1 . 1 . . . . . . 1 . . . . . . 12 Parts Field Recycled . | . . . . . . . . . . . . . . . . . . . . . . . . . . Retrieved Matter . | . . . . . . . . . . . . . . . . . . . . . . . . . . Parts Self-Destructed 6 | . . . . . . . . . . . . 3 . . 3 . . . . . . . . . . Prevented . | . . . . . . . . . . . . . . . . . . . . . . . . . . Kills | -11 -10 -10 -10 -9 -8 -7 -7 -7 -6 -6 -6 -6 -6 -6 -5 -5 -5 -5 -4 -4 -4 -4 -3 -2 -1 ------- Run | Scr Mat Min Exi Min Mat Fac Was Fac Fac Was Fac Low Low Zio Pro Fac Was Fac Fac Ext Cet Arc Res Res Acc Combat Hostiles Destroyed 229 | . 13 . . 16 17 26 6 38 8 5 7 . 1 . 6 . . 5 5 22 6 1 . 1 46 Melee 5 | . . . . . . 1 . . . . . . 1 . . . . . 1 2 . . . . . Guns 127 | . 10 . . 2 12 21 . 25 8 . 3 . . . . . . . . . 5 1 . 1 39 Cannons 8 | . 2 . . . . . . . . . . . . . . . . . 1 2 1 . . . 2 AOE 87 | . 1 . . 14 5 4 6 13 . 5 4 . . . 6 . . 5 3 18 . . . . 3 Classes Destroyed 24 | 1 6 . . 2 1 6 1 4 . . . 1 . . . . . . 1 . . . . . 1 Worker 45 | . . . . 5 2 8 . 8 . . 2 . . . . . . . 8 1 . . . . 11 Builder 35 | . 2 . . 1 2 9 . 4 . . 4 . . . . . . . 2 2 . . . . 9 Tunneler 13 | 2 . . . 7 . 1 . . . . 2 . . . . . . . . . . . . . 1 Hauler 21 | . 2 . . . 3 5 . 1 . . 1 . . . . . . 2 . . . . 1 . 6 Recycler 17 | . . . . . . 3 . 4 . . 1 . . . . . . . 1 1 . . . . 7 Carrier 1 | . . . . . . . . 1 . . . . . . . . . . . . . . . . . Mechanic 3 | . . . . . . . . 2 . . . . . . . . . . 1 . . . . . . Operator 2 | . 2 . . . . . . . . . . . . . . . . . . . . . . . . Watcher 10 | . 1 . . . . 3 . 1 . . 2 . . . . . . . 1 . . . . . 2 Swarmer 40 | . 3 . . 5 9 4 . 6 3 . . . . . 5 . . 5 . . . . . . . Cutter 3 | . . . . . . . . . . . . . . . . . . . 3 . . . . . . Grunt 84 | . 10 . . 11 3 8 . 12 4 . 5 . . . 1 . . . 2 18 3 . . . 7 Brawler 2 | . . . . . . . . 1 . . . . . . . . . . . 1 . . . . . Duelist 2 | . . . . . . . . 1 . . . . . . . . . . . . . . . . 1 Protector 6 | . . . . . . 1 . 4 . . . . . . . . . . . . . . . . 1 Sentry 19 | . . . . . 5 2 . 4 . . . . . . . . . . . 2 . 1 . 1 4 Specialist 4 | . . . . . . 1 . 3 . . . . . . . . . . . . . . . . . Hunter 22 | . . . . . . 5 . 5 . . 1 . . . . . . . . . . . . . 11 Programmer 29 | . . . . . . 4 . 1 1 . 1 . . . . . . . . 1 . . . . 21 Heavy 2 | . . . . . . 1 . 1 . . . . . . . . . . . . . . . . . Behemoth 1 | . . . . . . . . . . . . . . . . . . . . . . . . . 1 Compactor 11 | . . . . . . . 6 . . 5 . . . . . . . . . . . . . . . Cetus Guard 3 | . . . . . . . . . . . . . . . . . . . . . 3 . . . . Enhanced Grunt 1 | . . . . . . . . . . . . . . . . . . . . . . . . . 1 Decomposer 2 | . . . . . . . . . . . . 2 . . . . . . . . . . . . . Samaritan 3 | . . . . . . . . . . . . 3 . . . . . . . . . . . . . Assembled 1 | . . . . 1 . . . . . . . . . . . . . . . . . . . . . Wasp 1 | . . . . . . . . . . . . . . . . . 1 . . . . . . . . Thug 1 | . . . . . . . 1 . . . . . . . . . . . . . . . . . . Butcher 1 | . . . . . . . . . . . . . 1 . . . . . . . . . . . . Best Kill Streak 19 | 2 7 . . 10 4 13 5 19 4 2 7 . 1 . 5 . . 5 11 14 3 1 1 1 16 Combat Bots Only 16 | . 3 . . 5 4 6 5 16 4 2 4 . 1 . 5 . . 5 4 14 3 1 . 1 6 Max Kills in Single Turn 6 | 1 3 . . 4 3 6 1 4 1 1 3 1 1 . 5 . 1 2 2 3 2 1 1 1 4 Gunslinging 1 | . . . . . . . . . . . . . . . . . . . . . 1 . . . 1 Exploded 5 | . 1 . . 2 3 3 1 3 . 1 3 . . . 5 . . 2 2 3 . . . . 3 Melee 1 | . . . . . . 1 . . . . . . 1 . . . . . 1 1 . . . . . Uniques/NPCs Destroyed . | . . . . . . . . . . . . . . . . . . . . . . . . . . Combat | -11 -10 -10 -10 -9 -8 -7 -7 -7 -6 -6 -6 -6 -6 -6 -5 -5 -5 -5 -4 -4 -4 -4 -3 -2 -1 -------- Run | Scr Mat Min Exi Min Mat Fac Was Fac Fac Was Fac Low Low Zio Pro Fac Was Fac Fac Ext Cet Arc Res Res Acc Damage Taken 25884 | . 696 . . 288 1001 2844 37 3083 911 493 1232 . 16 . 178 . . 166 463 1886 1673 61 247 602 10007 Core 3540 | . 61 . . 26 151 310 1 336 209 123 170 . . . 48 . . 46 77 323 551 . 247 26 835 Absorbed by Shields 588 | . . . . . . . . . . . . . . . . . . . . 66 230 . . . 292 Reduced by Siege Mode 458 | . . . . . . . . . . . . . . . . . . . . . 90 . . 14 354 Regen/Repaired (Parts) 213 | . 213 . . . . . . . . . . . . . . . . . . . . . . . . Core Remaining (%) 61 | 100 . . . 65 72 . . 7 . . . . . . 35 . . 95 . . . 17 81 98 47 Volleys Fired 707 | 5 54 . . 26 62 84 28 89 27 41 31 . . . 3 . . 5 7 28 21 8 8 16 164 Largest 4 | 2 2 . . 2 2 2 1 2 2 2 2 . . . 1 . . 1 1 1 2 2 2 4 4 Hottest 550 | 40 76 . . 76 111 118 43 121 113 176 176 . . . . . . 43 . 61 70 70 240 185 550 Shots Fired 1539 | 10 107 . . 33 113 176 28 197 54 72 49 . . . 3 . . 5 7 28 37 13 13 53 541 Gun 1327 | 10 87 . . 12 111 170 . 186 54 44 43 . . . . . . . . . 34 13 13 53 497 Cannon 74 | . 20 . . . . 3 . . . . . . . . . . . . . 7 3 . . . 41 Launcher 107 | . . . . 21 2 3 28 11 . 28 6 . . . . . . 5 . . . . . . 3 Special 31 | . . . . . . . . . . . . . . . 3 . . . 7 21 . . . . . Kinetic 1016 | 10 74 . . 8 80 134 . 177 38 . . . . . . . . . . 7 37 13 10 45 383 Thermal 385 | . 33 . . 4 31 39 . 9 16 44 43 . . . . . . . . . . . 3 8 155 Explosive 138 | . . . . 21 2 3 28 11 . 28 6 . . . 3 . . 5 7 21 . . . . 3 Electromagnetic . | . . . . . . . . . . . . . . . . . . . . . . . . . . Robot Hit Streak 26 | 4 12 . . 6 8 19 10 8 8 17 12 . . . 5 . . . 4 11 15 4 4 24 26 Robot Miss Streak 9 | 1 4 . . 7 7 5 1 6 4 2 3 . . . . . . 3 . 1 1 2 2 2 9 Penetration Max 2 | . . . . . . 1 . 1 1 . . . . . . . . . . . 1 . . 1 2 Secondary Targets 21 | . . . . . . 1 . 2 2 . . . . . . . . . . . 2 . . . 14 Max Gunslinging Chain 1 | . . . . . . 1 . 1 1 . . . . . . . . . . . 1 . . . 1 Autonomous 64 | . . . . . . 19 . 45 . . . . . . . . . . . . . . . . . Shots Hit Robots 1087 | 7 62 . . 9 65 134 23 133 33 61 29 6 3 . 3 . 2 11 33 44 40 7 6 35 341 Core Hits 738 | 4 24 . . 44 34 100 18 128 13 11 39 2 2 . 7 . 1 15 20 66 18 3 3 5 181 Critical Kills 29 | . . . . . . 4 . 6 1 . . . . . . . . . . . 2 . 1 1 14 Critical Parts Destroyed 44 | . . . . . . 5 . 5 3 . . . . . . . . . . . 5 1 1 1 23 Critical Strikes 99 | . 2 . . . 2 13 . 11 4 3 . . . . 1 . . . . 7 9 1 2 3 41 Burn 11 | . 2 . . . 2 4 . . . 3 . . . . . . . . . . . . . . . Meltdown 2 | . . . . . . . . . . . . . . . . . . . . . . . . . 2 Destroy 77 | . . . . . . 9 . 11 4 . . . . . . . . . . . 8 1 2 3 39 Blast 2 | . . . . . . . . . . . . . . . . . . . . 2 . . . . . Sever 7 | . . . . . . . . . . . . . . . 1 . . . . 5 1 . . . . Melee Attacks 147 | . . . . . . . . . . . . 6 3 1 1 . 2 30 39 39 10 . . . 16 Impact . | . . . . . . . . . . . . . . . . . . . . . . . . . . Slashing 100 | . . . . . . . . . . . . . . 1 . . 1 27 32 29 10 . . . . Piercing 47 | . . . . . . . . . . . . 6 3 . 1 . 1 3 7 10 . . . . 16 Sneak Attacks 36 | . . . . . . . . . . . . 6 . . . . 2 3 14 9 . . . . 2 Combat Hostiles 12 | . . . . . . . . . . . . . . . . . . . 3 7 . . . . 2 Follow-up Attacks . | . . . . . . . . . . . . . . . . . . . . . . . . . . Damage Inflicted 52670 | 76 1262 . . 1667 1315 3735 3670 6561 896 4831 2798 472 93 . 920 . 86 935 2095 6247 1352 186 235 983 12255 Guns 23550 | 73 712 . . 99 1041 2882 . 3491 896 1075 718 . . . . . . . . . 972 186 235 983 10187 Cannons 1555 | . 151 . . . . 50 . . . . . . . . . . . . . 232 109 . . . 1013 Explosions 22788 | . 380 . . 1558 265 778 3670 2998 . 3756 2080 . . . 827 . . 482 475 4608 . . . . 911 Melee 3629 | . . . . . . . . . . . . 472 93 . . . 86 453 1466 760 266 . . . 33 Ramming 310 | 3 19 . . 10 9 25 . 72 . . . . . . . . . . . 56 5 . . . 111 Kinetic 17716 | 73 538 . . 68 806 2284 . 3369 624 . . . . . . . . . . 232 1081 186 168 869 7418 Thermal 7637 | . 325 . . 31 235 648 . 122 272 1075 966 . . . . . . . . . . . 67 114 3782 Explosive 22540 | . 380 . . 1558 265 778 3670 2998 . 3756 1832 . . . 827 . . 482 475 4608 . . . . 911 Electromagnetic . | . . . . . . . . . . . . . . . . . . . . . . . . . . Impact . | . . . . . . . . . . . . . . . . . . . . . . . . . . Slashing 3821 | . . . . . . . . . . . . . . . 93 . 84 446 1605 1327 266 . . . . Piercing 646 | . . . . . . . . . . . . 472 93 . . . 2 7 15 24 . . . . 33 Highest Corruption 43 | . 2 2 2 2 . 3 15 28 . . . . . . . . . . 1 5 42 42 28 . 43 Average Corruption 9 | . 1 2 2 2 . 1 13 19 . . . . . . . . . . 1 4 31 42 21 . 16 Corruption Purged . | . . . . . . . . . . . . . . . . . . . . . . . . . . Corruption Blocked . | . . . . . . . . . . . . . . . . . . . . . . . . . . Effects 304 | . 18 5 18 17 . 9 30 75 . . . . . . . . . . 1 10 21 7 1 . 92 Message Errors 71 | . 3 1 11 4 . . 13 13 . . . . . . . . . . . 2 8 2 . . 14 Matter Fused 66 | . 1 1 3 3 . 5 6 19 . . . . . . . . . . 1 2 5 . . . 20 Heat Flow Errors 32 | . 2 2 2 3 . 2 2 9 . . . . . . . . . . . 1 2 . . . 7 Energy Discharges 37 | . 5 1 2 2 . . 2 8 . . . . . . . . . . . 3 1 . 1 . 12 Parts Rejected 4 | . . . . . . . . 2 . . . . . . . . . . . . . . . . 2 Data Loss (minor) 26 | . 2 . . 1 . 1 6 6 . . . . . . . . . . . 1 2 1 . . 6 Data Loss (major) 19 | . 2 . . 1 . . 1 8 . . . . . . . . . . . 1 . . . . 6 Misfires 5 | . 1 . . 1 . . . 1 . . . . . . . . . . . . . . . . 2 Alerts 7 | . 1 . . 2 . . . 3 . . . . . . . . . . . . . . . . 1 Misdirections 10 | . . . . . . . . 3 . . . . . . . . . . . . 1 1 . . 5 Weapon Failures 27 | . 1 . . . . 1 . 3 . . . . . . . . . . . . 2 3 . . 17 Overload Shots 7 | . . . . . . . . . . . . . . . . . . . . . . . 3 . 4 Effects 1 | . . . . . . . . . . . . . . . . . . . . . . . . . 1 Energy Bleed 1 | . . . . . . . . . . . . . . . . . . . . . . . . . 1 Overflow Damage 1420 | . 143 . . 37 10 71 140 223 . 78 75 170 . . . . . 3 235 154 . . . . 81 Projectiles 68 | . 12 . . . . . . . . . . . . . . . . . . . . . . . 56 Explosions 831 | . 130 . . 37 10 71 140 207 . 78 75 . . . . . . . 16 42 . . . . 25 Melee 521 | . 1 . . . . . . 16 . . . 170 . . . . . 3 219 112 . . . . . Knockbacks 4 | . 1 . . 1 . . . 1 . . . . . . . . . . . 1 . . . . . Impact 2 | . . . . 1 . . . 1 . . . . . . . . . . . . . . . . . Kinetic 2 | . 1 . . . . . . . . . . . . . . . . . . 1 . . . . . Secondary . | . . . . . . . . . . . . . . . . . . . . . . . . . . Self-Inflicted Damage 1228 | . 113 . . 89 37 47 37 2 . 464 264 . . . . . . . . 28 . . . . 147 Shots 29 | . 1 . . 5 1 1 2 . . 13 4 . . . . . . . . . . . . . 2 Rammed 37 | 2 4 . . 2 2 5 . 1 . . . . . . . . . . . 1 2 . . . 18 Targets Rammed 51 | 2 4 . . 3 3 8 . 9 . . . . . . . . . . . 1 2 . . . 19 Kicked 11 | . . . . . . 2 . 8 . . . . . . . . . . . . . . . . 1 Crushed 3 | . . . . 1 1 1 . . . . . . . . . . . . . . . . . . . Highest Temperature 590 | . 220 167 162 192 189 151 264 436 14 101 146 . 64 . 32 . 3 14 288 246 176 49 590 272 367 Average Temperature 93 | . 68 83 74 59 60 45 132 136 10 44 50 . 28 . 18 . 2 2 130 148 68 22 272 105 113 Received Heat Transfer 4165 | . 252 . . 87 369 579 . 990 270 . 432 . 6 . 27 . . . . 302 257 18 . 162 414 Effects 14 | . . . . . . . . 8 . . . . . . . . . . . . . . 3 . 3 Shutdowns 3 | . . . . . . . . . . . . . . . . . . . . . . . 1 . 2 Energy Bleed 5 | . . . . . . . . 4 . . . . . . . . . . . . . . . . 1 Interference 4 | . . . . . . . . 4 . . . . . . . . . . . . . . . . . Damage (minor) 1 | . . . . . . . . . . . . . . . . . . . . . . . 1 . . Damage (core) 1 | . . . . . . . . . . . . . . . . . . . . . . . 1 . . Siege Activations 9 | . . . . . . . . . . . . . . . . . . . . . 2 . . 1 6 Total Turns 214 | . . . . . . . . . . . . . . . . . . . . . 55 . . 19 140 Longest Duration 32 | . . . . . . . . . . . . . . . . . . . . . 32 . . 19 31 Robots Corrupted . | . . . . . . . . . . . . . . . . . . . . . . . . . . Combat Hostiles . | . . . . . . . . . . . . . . . . . . . . . . . . . . Parts Fried 3 | . 3 . . . . . . . . . . . . . . . . . . . . . . . . Impact Corruptions 3 | . 1 . . . . . . 1 . . . . . . . . . . . 1 . . . . . Robots Melted 2 | . . . . . . . . . . . . . . . . . . . . . . . . . 2 Combat Hostiles 2 | . . . . . . . . . . . . . . . . . . . . . . . . . 2 Parts Melted 27 | . 1 . . 1 2 4 . 2 1 . 3 . . . . . . . . . . . . . 13 Heat Transferred 10853 | . 962 . . 74 703 1462 . 148 407 1628 1125 . . . . . . . . . . . 100 148 4096 Parts Sabotaged 3 | . . . . . . . . . . . . . . . . . . . . . . . . . 3 Parts Stolen . | . . . . . . . . . . . . . . . . . . . . . . . . . . Parts Stripped . | . . . . . . . . . . . . . . . . . . . . . . . . . . Power Chain Reactions . | . . . . . . . . . . . . . . . . . . . . . . . . . . Missiles Intercepted . | . . . . . . . . . . . . . . . . . . . . . . . . . . Alert | -11 -10 -10 -10 -9 -8 -7 -7 -7 -6 -6 -6 -6 -6 -6 -5 -5 -5 -5 -4 -4 -4 -4 -3 -2 -1 ------- Run | Scr Mat Min Exi Min Mat Fac Was Fac Fac Was Fac Low Low Zio Pro Fac Was Fac Fac Ext Cet Arc Res Res Acc Peak Influence 1408 | 10 331 75 . 583 457 650 246 871 614 215 290 . . . . 125 43 343 424 1056 1091 616 299 506 1408 Initial 580 | . 6 75 . . 226 172 177 32 426 144 . . . . . 113 43 30 168 135 580 436 231 168 303 Average 348 | 1 188 55 . 222 340 296 154 452 524 168 125 . . . . 121 43 198 255 357 766 538 288 318 750 Maximum Alert Level 4 | . 1 . . 2 2 2 1 3 2 1 1 . . . . . . 1 2 3 3 2 1 2 4 Low Security (%) 34 | 100 51 100 . 52 . 28 48 31 . 93 74 . . . . 100 100 50 16 46 . . . 8 . Level 1 31 | . 48 . . 40 73 45 51 2 . 6 25 . . . . . . 49 79 25 . . 100 71 5 Level 2 23 | . . . . 7 26 26 . 50 100 . . . . . . . . . 4 7 37 100 . 19 50 Level 3 8 | . . . . . . . . 15 . . . . . . . . . . . 20 62 . . . 33 Level 4 1 | . . . . . . . . . . . . . . . . . . . . . . . . . 11 Level 5 . | . . . . . . . . . . . . . . . . . . . . . . . . . . High Security . | . . . . . . . . . . . . . . . . . . . . . . . . . . Max Security . | . . . . . . . . . . . . . . . . . . . . . . . . . . Squads Dispatched 66 | . 5 . . . 1 9 . 14 3 . 4 . . . . . . 3 5 4 . . . 1 17 Investigation 14 | . 3 . . . 1 . . 2 . . 1 . . . . . . 2 1 2 . . . . 2 Extermination 13 | . . . . . . 2 . 2 1 . 1 . . . . . . . . . . . . . 7 Reinforcement 26 | . 2 . . . . 7 . 3 1 . 2 . . . . . . 1 4 2 . . . 1 3 Assault 7 | . . . . . . . . 4 1 . . . . . . . . . . . . . . . 2 Garrison 6 | . . . . . . . . 3 . . . . . . . . . . . . . . . . 3 Intercept . | . . . . . . . . . . . . . . . . . . . . . . . . . . Searches Triggered . | . . . . . . . . . . . . . . . . . . . . . . . . . . Construction Impeded 8 | . . . . . . 2 . 1 . . . . . . . . . . 1 2 . . . . 2 Haulers Reinforced 4 | . . . . . . 1 . . . . 2 . . . . . . 1 . . . . . . . Active Scanning Responses . | . . . . . . . . . . . . . . . . . . . . . . . . . . Cargo Convoy Interrupts 2 | . . . . . . 1 . 1 . . . . . . . . . . . . . . . . . Stealth | -11 -10 -10 -10 -9 -8 -7 -7 -7 -6 -6 -6 -6 -6 -6 -5 -5 -5 -5 -4 -4 -4 -4 -3 -2 -1 --------- Run | Scr Mat Min Exi Min Mat Fac Was Fac Fac Was Fac Low Low Zio Pro Fac Was Fac Fac Ext Cet Arc Res Res Acc Distress Signals 15 | . 2 . . 1 1 3 . . 1 . 1 . . . . . . . . 2 2 . . . 2 Communications Jammed . | . . . . . . . . . . . . . . . . . . . . . . . . . . Distress Signals . | . . . . . . . . . . . . . . . . . . . . . . . . . . Times Spotted 438 | . 18 . . 29 24 55 6 57 10 6 22 . 14 . 16 . . 7 16 43 19 4 1 7 84 Peak Tracking Total 15 | . 4 . . 4 5 13 2 9 4 2 8 . 8 . 7 . . 2 4 9 5 2 1 4 15 Tactical Retreats 22 | . 1 . . . . 1 . 7 . . 1 . 3 . 1 . . . 3 2 . . . . 3 Traps | -11 -10 -10 -10 -9 -8 -7 -7 -7 -6 -6 -6 -6 -6 -6 -5 -5 -5 -5 -4 -4 -4 -4 -3 -2 -1 ------- Run | Scr Mat Min Exi Min Mat Fac Was Fac Fac Was Fac Low Low Zio Pro Fac Was Fac Fac Ext Cet Arc Res Res Acc Traps Triggered 16 | . 3 . . . . 2 . 2 1 . 1 . . . . 1 . 1 2 1 . . . . 2 Indirectly . | . . . . . . . . . . . . . . . . . . . . . . . . . . Trap Hack Attempts . | . . . . . . . . . . . . . . . . . . . . . . . . . . Triggered . | . . . . . . . . . . . . . . . . . . . . . . . . . . Disarmed . | . . . . . . . . . . . . . . . . . . . . . . . . . . Reprogrammed . | . . . . . . . . . . . . . . . . . . . . . . . . . . Reused . | . . . . . . . . . . . . . . . . . . . . . . . . . . Traps Extracted . | . . . . . . . . . . . . . . . . . . . . . . . . . . Installed . | . . . . . . . . . . . . . . . . . . . . . . . . . . Triggered 4 | . . . . . . . . . . . . . 3 . 1 . . . . . . . . . . Machines | -11 -10 -10 -10 -9 -8 -7 -7 -7 -6 -6 -6 -6 -6 -6 -5 -5 -5 -5 -4 -4 -4 -4 -3 -2 -1 ---------- Run | Scr Mat Min Exi Min Mat Fac Was Fac Fac Was Fac Low Low Zio Pro Fac Was Fac Fac Ext Cet Arc Res Res Acc Machines Disabled 31 | . 2 . . . 1 2 . 9 1 . 6 . . . . . . . . 2 2 1 . . 5 Max in Single Turn 4 | . 1 . . . 1 1 . 2 1 . 4 . . . . . . . . 1 . 1 . . 1 Garrison Access 2 | . . . . . . 1 . . . . 1 . . . . . . . . . . . . . . Machines Sabotaged . | . . . . . . . . . . . . . . . . . . . . . . . . . . Garrisons Compromised . | . . . . . . . . . . . . . . . . . . . . . . . . . . Overloaded Fab Kills . | . . . . . . . . . . . . . . . . . . . . . . . . . . Hacking | -11 -10 -10 -10 -9 -8 -7 -7 -7 -6 -6 -6 -6 -6 -6 -5 -5 -5 -5 -4 -4 -4 -4 -3 -2 -1 --------- Run | Scr Mat Min Exi Min Mat Fac Was Fac Fac Was Fac Low Low Zio Pro Fac Was Fac Fac Ext Cet Arc Res Res Acc Machines Accessed 55 | . 8 1 2 1 2 1 . 7 1 . 3 . 1 . . 2 . 6 9 10 . . . 1 . Terminals 37 | . 5 . . 1 2 . . 4 1 . 1 . . . . 2 . 4 7 10 . . . . . Fabricators 2 | . . . . . . . . . . . . . . . . . . 1 1 . . . . . . Repair Stations 3 | . 1 . . . . . . . . . . . . . . . . 1 1 . . . . . . Recycling Units 4 | . 2 . . . . . . 2 . . . . . . . . . . . . . . . . . Scanalyzers . | . . . . . . . . . . . . . . . . . . . . . . . . . . Garrison Access 5 | . . . . . . 1 . 1 . . 2 . . . . . . . . . . . . 1 . Total Hacks 126 | . 26 1 2 3 5 3 . 18 1 . 5 . 1 . . 3 . 12 25 20 . . . 1 . Successful 58 | . 16 1 2 2 3 1 . 5 . . 2 . 1 . . 1 . 4 12 8 . . . . . Failed 66 | . 9 . . . 2 2 . 13 1 . 3 . . . . 2 . 8 13 12 . . . 1 . Catastrophic 18 | . 1 . . . 1 1 . 2 1 . 1 . . . . . . 4 2 4 . . . 1 . Database Lockouts 2 | . 1 . . 1 . . . . . . . . . . . . . . . . . . . . . Manual 57 | . 17 . 1 . 3 . . 9 . . . . . . . 2 . 3 11 10 1 . . . . Terminals 94 | . 20 . . 3 5 . . 11 1 . 2 . . . . 3 . 8 21 20 . . . . . Fabricators 4 | . . . . . . . . . . . . . . . . . . 2 2 . . . . . . Repair Stations 8 | . 4 . . . . . . . . . . . . . . . . 2 2 . . . . . . Recycling Units 7 | . 2 . . . . . . 5 . . . . . . . . . . . . . . . . . Scanalyzers . | . . . . . . . . . . . . . . . . . . . . . . . . . . Garrison Access 9 | . . . . . . 3 . 2 . . 3 . . . . . . . . . . . . 1 . Terminal Hacks 39 | . 10 1 2 2 3 . . 4 . . 1 . 1 . . 1 . 2 5 7 . . . . . Record 6 | . 3 . 1 2 . . . . . . . . . . . . . . . . . . . . . Part Schematic 2 | . 1 . . . . . . . . . . . . . . . . . 1 . . . . . . Robot Analysis 5 | . 4 . . . 1 . . . . . . . . . . . . . . . . . . . . Prototype ID Bank 1 | . 1 . . . . . . . . . . . . . . . . . . . . . . . . Open Door 6 | . . 1 . . . . . . . . . . 1 . . . . . . 4 . . . . . Level Access Points 2 | . . . . . . . . . . . . . . . . . . 1 1 . . . . . . Branch Access Points 1 | . . . . . . . . . . . . . . . . . . . 1 . . . . . . Emergency Access Points 1 | . . . . . . . . 1 . . . . . . . . . . . . . . . . . Machine Index 2 | . . . . . . . . . . . . . . . . . . 1 1 . . . . . . Terminal Index 1 | . . . . . . . . . . . . . . . . . . . . 1 . . . . . Garrison Index 1 | . . . . . . . . 1 . . . . . . . . . . . . . . . . . Alert Level 2 | . . . . . . . . 1 . . . . . . . . . . . 1 . . . . . Unreport Threat 2 | . . . . . . . . . . . . . . . . . . . 1 1 . . . . . Recall Reinforcements 1 | . 1 . . . . . . . . . . . . . . . . . . . . . . . . Hauler Manifests 2 | . . . . . 1 . . . . . . . . . . 1 . . . . . . . . . Zone Layout 3 | . . . . . 1 . . 1 . . 1 . . . . . . . . . . . . . . EX-Prototype ID Bank 1 | . . . 1 . . . . . . . . . . . . . . . . . . . . . . Fabricator Hacks 3 | . . . . . . . . . . . . . . . . . . 2 1 . . . . . . Load Schematic 1 | . . . . . . . . . . . . . . . . . . 1 . . . . . . . Build 2 | . . . . . . . . . . . . . . . . . . 1 1 . . . . . . Repair Station Hacks 5 | . 4 . . . . . . . . . . . . . . . . . 1 . . . . . . Scan Component 3 | . 2 . . . . . . . . . . . . . . . . . 1 . . . . . . Repair 2 | . 2 . . . . . . . . . . . . . . . . . . . . . . . . Recycling Unit Hacks . | . . . . . . . . . . . . . . . . . . . . . . . . . . Scanalyzer . | . . . . . . . . . . . . . . . . . . . . . . . . . . Garrison Access Hacks 2 | . . . . . . 1 . . . . 1 . . . . . . . . . . . . . . Seal Access 2 | . . . . . . 1 . . . . 1 . . . . . . . . . . . . . . Unauthorized Hacks 9 | . 2 . . . . . . 1 . . . . . . . . . . 5 1 . . . . . Terminals 6 | . . . . . . . . . . . . . . . . . . . 5 1 . . . . . Assimilate 2 | . . . . . . . . . . . . . . . . . . . 2 . . . . . . Botnet 4 | . . . . . . . . . . . . . . . . . . . 3 1 . . . . . Fabricators . | . . . . . . . . . . . . . . . . . . . . . . . . . . Repair Stations . | . . . . . . . . . . . . . . . . . . . . . . . . . . Recycling Units 3 | . 2 . . . . . . 1 . . . . . . . . . . . . . . . . . Tunnel 3 | . 2 . . . . . . 1 . . . . . . . . . . . . . . . . . Scanalyzers . | . . . . . . . . . . . . . . . . . . . . . . . . . . Garrison Access . | . . . . . . . . . . . . . . . . . . . . . . . . . . Data Cores Recovered . | . . . . . . . . . . . . . . . . . . . . . . . . . . Used . | . . . . . . . . . . . . . . . . . . . . . . . . . . Hacking Detections 44 | . 5 . . 1 2 1 . 6 1 . 2 . . . . 1 . 6 9 9 . . . 1 . Full Trace Events 8 | . 1 . . . 1 . . 1 . . . . . . . . . 2 1 2 . . . . . Feedback Events . | . . . . . . . . . . . . . . . . . . . . . . . . . . Feedback Blocked . | . . . . . . . . . . . . . . . . . . . . . . . . . . Robot Schematics Acquired 4 | . . . . . . . . . . . . . . 4 . . . . . . . . . . . Robots Built . | . . . . . . . . . . . . . . . . . . . . . . . . . . Authchips . | . . . . . . . . . . . . . . . . . . . . . . . . . . Time . | . . . . . . . . . . . . . . . . . . . . . . . . . . Total Robot Build Rating . | . . . . . . . . . . . . . . . . . . . . . . . . . . Part Schematics Acquired 17 | . 1 . . . . . . . . . . . . 15 . . . . 1 . . . . . . Parts Built 3 | . . . . . . . . . . . . . . . . . . 2 1 . . . . . . Authchips . | . . . . . . . . . . . . . . . . . . . . . . . . . . Time 262 | . . . . . . . . . . . . . . . . . . 58 204 . . . . . . Total Part Build Rating 22 | . . . . . . . . . . . . . . . . . . 14 8 . . . . . . Parts Repaired 2 | . 2 . . . . . . . . . . . . . . . . . . . . . . . . Time 52 | . 52 . . . . . . . . . . . . . . . . . . . . . . . . Parts Recycled . | . . . . . . . . . . . . . . . . . . . . . . . . . . Recycled Matter . | . . . . . . . . . . . . . . . . . . . . . . . . . . Retrieved Matter . | . . . . . . . . . . . . . . . . . . . . . . . . . . Retrieved Components . | . . . . . . . . . . . . . . . . . . . . . . . . . . Parts Scanalyzed . | . . . . . . . . . . . . . . . . . . . . . . . . . . Part Schematics Acquired . | . . . . . . . . . . . . . . . . . . . . . . . . . . Parts Damaged . | . . . . . . . . . . . . . . . . . . . . . . . . . . Bothacking | -11 -10 -10 -10 -9 -8 -7 -7 -7 -6 -6 -6 -6 -6 -6 -5 -5 -5 -5 -4 -4 -4 -4 -3 -2 -1 ------------ Run | Scr Mat Min Exi Min Mat Fac Was Fac Fac Was Fac Low Low Zio Pro Fac Was Fac Fac Ext Cet Arc Res Res Acc Used RIF Installer . | . . . . . . . . . . . . . . . . . . . . . . . . . . Robots Hacked . | . . . . . . . . . . . . . . . . . . . . . . . . . . Non-combat . | . . . . . . . . . . . . . . . . . . . . . . . . . . Combat . | . . . . . . . . . . . . . . . . . . . . . . . . . . Robot Hacks Applied . | . . . . . . . . . . . . . . . . . . . . . . . . . . Relay Couplers Released 8 | . . . . . . 4 . . . . . . . . . . . . . . . . . . 4 Programmers 8 | . . . . . . 4 . . . . . . . . . . . . . . . . . . 4 Fabnet Peak Effective % . | . . . . . . . . . . . . . . . . . . . . . . . . . . Robots Rewired . | . . . . . . . . . . . . . . . . . . . . . . . . . . Allies Hacked . | . . . . . . . . . . . . . . . . . . . . . . . . . . Hacks Repelled . | . . . . . . . . . . . . . . . . . . . . . . . . . . Allies | -11 -10 -10 -10 -9 -8 -7 -7 -7 -6 -6 -6 -6 -6 -6 -5 -5 -5 -5 -4 -4 -4 -4 -3 -2 -1 -------- Run | Scr Mat Min Exi Min Mat Fac Was Fac Fac Was Fac Low Low Zio Pro Fac Was Fac Fac Ext Cet Arc Res Res Acc Total Allies 40 | . . 3 . . . . 1 . . 1 . . . . . . 20 . 2 7 5 . . . 1 Largest Group 20 | . . 3 3 3 . . 1 . . 1 . . . . . . 20 . 2 3 5 4 3 3 2 Highest-Rated Group 798 | . . 40 40 40 . . 31 . . 31 . . . . . . 798 . 52 210 537 441 288 288 219 Highest-Rated Ally 219 | . . 16 16 16 . . 31 . . 31 . . . . . . 50 . 26 159 159 153 96 96 219 Total Orders 2 | . . . . . . . . 1 . . . . . . . . . . 1 . . . . . . STAY 1 | . . . . . . . . . . . . . . . . . . . 1 . . . . . . RETURN 1 | . . . . . . . . 1 . . . . . . . . . . . . . . . . . Ally Attacks 307 | . . . . 55 3 5 17 4 . 8 . . . . . . . . . 40 64 27 16 46 22 Total Damage 7942 | . . . . 621 . . 189 . . 125 . . . . . . . . . 1108 1919 765 715 1695 805 Kills 52 | . . . . 16 . . . . . . . . . . . . . . . 8 14 3 1 6 4 Allies Corrupted . | . . . . . . . . . . . . . . . . . . . . . . . . . . Allies Melted . | . . . . . . . . . . . . . . . . . . . . . . . . . . Intel | -11 -10 -10 -10 -9 -8 -7 -7 -7 -6 -6 -6 -6 -6 -6 -5 -5 -5 -5 -4 -4 -4 -4 -3 -2 -1 ------- Run | Scr Mat Min Exi Min Mat Fac Was Fac Fac Was Fac Low Low Zio Pro Fac Was Fac Fac Ext Cet Arc Res Res Acc Robot Analysis Total 5 | . 4 . . . 1 . . . . . . . . . . . . . . . . . . . . Derelict Logs Recovered 7 | . . . . 1 . . . . . . . 1 2 1 2 . . . . . . . . . . Drone Launches 14 | . . . . . 3 5 . 6 . . . . . . . . . . . . . . . . . Drone Recoveries 2 | . . . . . . . . 2 . . . . . . . . . . . . . . . . . Exploration | -11 -10 -10 -10 -9 -8 -7 -7 -7 -6 -6 -6 -6 -6 -6 -5 -5 -5 -5 -4 -4 -4 -4 -3 -2 -1 ------------- Run | Scr Mat Min Exi Min Mat Fac Was Fac Fac Was Fac Low Low Zio Pro Fac Was Fac Fac Ext Cet Arc Res Res Acc Turns Passed 15711 | 112 1307 539 1073 1303 1109 1220 708 1452 412 419 756 182 169 328 148 13 217 392 425 381 375 88 168 379 2036 Spaces Moved 11092 | 58 646 254 335 384 357 556 267 666 219 232 486 241 418 1158 472 45 249 1015 988 667 170 40 77 197 895 Core 110 | 12 . . . . . . . . . . . . . . . . . . . . . . . . 98 Treads 2965 | 46 646 254 335 384 357 94 1 . . . . . . . . . . . . . 134 40 77 197 400 Legs 1412 | . . . . . . 70 266 385 12 112 486 4 . . . . . . . . . . . . 77 Wheels 1301 | . . . . . . 392 . 266 160 120 . 43 . . . . . . . . . . . . 320 Hover 1716 | . . . . . . . . . . . . . . . . . . 25 988 667 36 . . . . Flight 3588 | . . . . . . . . 15 47 . . 194 418 1158 472 45 249 990 . . . . . . . Fastest Speed 14 | 50 160 160 320 320 160 110 90 120 125 125 120 26 17 26 17 26 24 24 14 14 22 160 160 160 50 Average Speed 108 | 137 160 212 320 320 230 148 238 163 140 125 124 38 35 26 25 26 25 24 29 32 140 160 160 160 138 Slowest Speed 480 | 160 160 320 320 320 320 400 480 330 230 190 260 120 334 26 26 26 26 150 30 92 160 160 160 160 210 Overloaded Moves 129 | . . . . . . . . . . . . . 37 . 5 . . . 28 36 23 . . . . Propulsion Burnouts 1 | . . . . . . . . . . . . . . . . . . . . . 1 . . . . Robots Hopped 3 | . . . . . . . . . . . . . 2 . . . 1 . . . . . . . . Cave-ins Triggered 1 | . . . . . . . . . . . . . . . . . . . . . . . . . 1 Exploration Rate (%) 48 | 4 87 73 69 79 34 13 100 24 6 74 21 56 73 86 65 3 83 27 30 83 69 72 4 8 27 Regions Visited 25 Branch Regions 10 Pre-discovered Areas 6 | . 2 . 1 . . . . 1 . . . . 1 1 . . . . . . . . . . . Known Exits Taken 9 | . . . . . 1 . . 1 . . . 1 1 1 1 . . 1 1 . . 1 . . . Unknown Exits Taken 10 | 1 1 1 1 1 . . . . . . 1 . . . . . . . . 1 1 . 1 1 . Scrap Searched 6 | . . 1 . 2 . . . . . . . . 1 2 . . . . . . . . . . . Spaces Dug 129 | . . . . 21 . . 20 2 . . 6 . . . . . . 16 45 . . . . 4 15 Terrain Destroyed 1350 | . 39 . . 148 15 23 144 150 7 205 87 . . . 17 . . 66 108 203 5 7 . 6 120 Melee 21 | . . . . . . . . . . . . . . . . . . 16 5 . . . . . . Projectile 147 | . . . . . . 6 . 50 7 3 11 . . . . . . . 3 3 5 7 . 6 46 AOE 1177 | . 39 . . 148 15 16 144 100 . 202 76 . . . 17 . . 50 100 200 . . . . 70 Terrain Rammed . | . . . . . . . . . . . . . . . . . . . . . . . . . . Walls Destroyed . | . . . . . . . . . . . . . . . . . . . . . . . . . . Machines Disabled . | . . . . . . . . . . . . . . . . . . . . . . . . . . Actions | -11 -10 -10 -10 -9 -8 -7 -7 -7 -6 -6 -6 -6 -6 -6 -5 -5 -5 -5 -4 -4 -4 -4 -3 -2 -1 --------- Run | Scr Mat Min Exi Min Mat Fac Was Fac Fac Was Fac Low Low Zio Pro Fac Was Fac Fac Ext Cet Arc Res Res Acc Total 13311 | 80 815 255 339 420 526 784 309 865 272 294 591 320 431 1181 491 47 400 1120 1069 765 247 48 105 223 1314 Wait 643 | . 74 . . 3 41 39 . 25 4 2 34 55 . . 12 . 139 47 15 10 23 1 7 6 106 Move 11063 | 57 645 253 334 383 356 556 266 665 219 231 485 240 413 1157 471 45 246 1014 987 666 169 39 76 196 894 Hop 3 | . . . . . . . . . . . . . 2 . . . 1 . . . . . . . . Pick Up 159 | 10 16 1 2 . 19 20 1 14 7 4 7 1 11 6 . 1 . 2 4 2 4 . 3 1 23 Fast Attach 150 | . 4 . . . 11 13 4 16 2 3 15 6 . 8 . . 4 9 5 5 12 . 1 2 30 Attach 114 | 6 3 . . 2 9 16 3 14 8 3 2 6 1 . 1 . 3 1 3 6 . . . 2 25 Detach 28 | . . . 2 . 1 3 4 5 1 3 1 . . . 1 . 2 . . 2 . . . . 3 Swap 78 | . 4 1 . 3 8 16 . 11 . 4 7 . . 2 2 . 1 3 2 1 . . 8 . 5 Drop 156 | . 11 . 1 . 16 26 3 12 4 3 9 6 1 7 . 1 2 9 7 1 6 . 2 . 29 Fire 707 | 5 54 . . 26 62 84 28 89 27 41 31 . . . 3 . . 5 7 28 21 8 8 16 164 Melee 147 | . . . . . . . . . . . . 6 3 1 1 . 2 30 39 39 10 . . . 16 Ram 6 | . . . . . . . . 1 . . . . . . . . . . . 1 . . . . 4 Kick 11 | . . . . . . 2 . 8 . . . . . . . . . . . . . . . . 1 Crush 34 | 2 4 . . 3 3 6 . . . . . . . . . . . . . . 2 . . . 14 Escape Stasis 12 | . . . . . . 3 . 5 . . . . . . . . . . . 4 . . . . . Rewire . | . . . . . . . . . . . . . . . . . . . . . . . . . . Trap . | . . . . . . . . . . . . . . . . . . . . . . . . . . Miscellaneous . | . . . . . . . . . . . . . . . . . . . . . . . . . . Route ------- -11/Scrapyard -10/Materials (discovered 4 exits: [*Mat x3] / *Min) -10/Mines (discovered 2 exits: [*Mat] / *Exi) -10/Exiles -9/Mines -8/Materials (discovered 2 exits: *Fac x2) -7/Factory -7/Waste -7/Factory -6/Factory -6/Waste -6/Factory (discovered 2 exits: [*Low x2]) -6/Lower Caves -6/Lower Caves (discovered 2 exits: *Fac / *Zio) -6/Zion -5/Proximity Caves -5/Factory -5/Waste -5/Factory (discovered 4 exits: *Fac x4) -4/Factory (discovered 8 exits: *Res x4 / Upp x2 / *Ext x2) -4/Extension (discovered 2 exits: *Res / *Cet) -4/Cetus (discovered 2 exits: *Res / [*Arc]) -4/Archives -3/Research -2/Research -1/Access To Epsilon Eridani History --------- Turn | Location | Event 6 | -11/Scrapyard | Discovered new exit (range 16) 113 | -11/Scrapyard | Entered Materials 285 | -10/Materials | Discovered new exit (range 10) 312 | -10/Materials | Build established: Mutant 441 | -10/Materials | Discovered new exit (range 15) 696 | -10/Materials | Discovered new exit (range 16) 1027 | -10/Materials | Repaired Lgt. Treads 1055 | -10/Materials | Repaired Lgt. Treads 1092 | -10/Materials | Central database locked down 1101 | -10/Materials | Discovered new exit (range 8) 1420 | -10/Materials | Entered Mines 1423 | -10/Mines | Found the Drone Emporium 1430 | -10/Mines | Found Prototype Device 1521 | -10/Mines | Deemed a non-threat by the Exiles lab entrance 1521 | -10/Mines | Discovered new exit (range 5) 1567 | -10/Mines | Discovered new exit (range 14) 1641 | -10/Mines | Assisted by bots powering up and referring to "LRC-V3" 1959 | -10/Mines | Entered Exiles 1959 | -10/Exiles | Accompanied by 3 allies 2036 | -10/Exiles | Met 8R-AWN 2094 | -10/Exiles | Met EX-HEX 2220 | -10/Exiles | Met EX-DEC 2232 | -10/Exiles | Learned location of Zion (-6) 2572 | -10/Exiles | Met EX-BIN 2616 | -10/Exiles | Aligned with FarCom system 2620 | -10/Exiles | Given EX-Vault access code 2693 | -10/Exiles | Opened EX-Vault 2719 | -10/Exiles | Found AWS/Gauss 2723 | -10/Exiles | Found 0b10 Alert Chip 2798 | -10/Exiles | Warned to stay clear of 0b10 Research branches 2996 | -10/Exiles | Discovered new exit (range 10) 3032 | -10/Exiles | Left Exiles lab with AWS/Gauss 3032 | -10/Exiles | Entered Mines 3032 | -9/Mines | Accompanied by 3 allies 3216 | -9/Mines | Excavation squad dispatched 3216 | -9/Mines | A large section of the Mines collapsed 3421 | -9/Mines | Learned location of 1 exit from Materials 3466 | -9/Mines | Excavation squad dispatched 3716 | -9/Mines | Excavation squad dispatched 3966 | -9/Mines | Excavation squad dispatched 4202 | -9/Mines | Central database locked down 4216 | -9/Mines | Excavation squad dispatched 4300 | -9/Mines | Discovered new exit (range 10) 4335 | -9/Mines | Entered Materials 4335 | -8/Materials | Evolved 4 slots: Propulsion x1, Utility x3 4336 | -8/Materials | Identified exit to Factory 4781 | -8/Materials | Identified Bomb Drone Bay 4855 | -8/Materials | Discovered exit to Factory (range 15) 4998 | -8/Materials | Build established: Scavenger-Mutant 5444 | -8/Materials | Entered Factory 5444 | -7/Factory | Evolved 2 slots: Utility x2 6018 | -7/Factory | Discovered new exit (range 7) 6327 | -7/Factory | Cargo convoy interrupted 6639 | -7/Factory | Lost 11 parts (1p4n5u1w) 6664 | -7/Factory | Sucked down chute 6664 | -7/Factory | Entered Waste 6665 | -7/Waste | Met a frightened Derelict 6675 | -7/Waste | Spotted C-40 Crusher 6679 | -7/Waste | EMP discharged 6680 | -7/Waste | Spotted C-40 Crusher 6682 | -7/Waste | Destroyed C-40 Crusher 6718 | -7/Waste | Destroyed C-40 Crusher 6725 | -7/Waste | Spotted C-40 Crusher 6732 | -7/Waste | Destroyed C-40 Crusher 6738 | -7/Waste | Spotted C-40 Crusher 6748 | -7/Waste | Destroyed C-40 Crusher 6753 | -7/Waste | Spotted C-40 Crusher 6760 | -7/Waste | Spotted C-40 Crusher 6762 | -7/Waste | Destroyed C-40 Crusher 6770 | -7/Waste | Destroyed C-40 Crusher 6779 | -7/Waste | EMP discharged 6779 | -7/Waste | System corruption reached 10% 6779 | -7/Waste | Found Damper Plating 6809 | -7/Waste | Found Damper Plating 6868 | -7/Waste | Build established: Mutant 6879 | -7/Waste | EMP discharged 6979 | -7/Waste | EMP discharged 7079 | -7/Waste | EMP discharged 7179 | -7/Waste | EMP discharged 7279 | -7/Waste | EMP discharged 7280 | -7/Waste | Discovered new exit (range 13) 7372 | -7/Waste | Entered Factory 7474 | -7/Factory | Garrison activated, responded to threat 7853 | -7/Factory | Core integrity fell below 50% 7855 | -7/Factory | Cargo convoy interrupted 7892 | -7/Factory | Destroyed 16 combat bots 8172 | -7/Factory | First assault squad dispatched 8346 | -7/Factory | Lost 6 parts (2n4u) 8627 | -7/Factory | Build established: Scavenger-Mutant 8719 | -7/Factory | Core integrity fell below 20% 8756 | -7/Factory | Lost 3 parts (1p1n1w) 8763 | -7/Factory | Discovered new exit (range 15) 8812 | -7/Factory | Found Prototype Device 8812 | -7/Factory | Identified Active Sensor Suite 8816 | -7/Factory | Lost 5 parts (2n3u) 8821 | -7/Factory | Identified exit to Factory 8824 | -7/Factory | Entered another Factory area 8824 | -6/Factory | Evolved 2 slots: Power x1, Propulsion x1 8945 | -6/Factory | Lost 3 parts (1p1n1w) 9174 | -6/Factory | First assault squad dispatched 9236 | -6/Factory | Sucked down chute 9236 | -6/Factory | Entered Waste 9237 | -6/Waste | Met a frightened Derelict 9248 | -6/Waste | Spotted C-40 Crusher 9251 | -6/Waste | Spotted C-40 Crusher 9284 | -6/Waste | Destroyed C-40 Crusher 9286 | -6/Waste | Destroyed C-40 Crusher 9356 | -6/Waste | Spotted C-40 Crusher 9384 | -6/Waste | Spotted C-40 Crusher 9411 | -6/Waste | Destroyed C-40 Crusher 9419 | -6/Waste | Destroyed C-40 Crusher 9427 | -6/Waste | Spotted C-40 Crusher 9456 | -6/Waste | Crushed by Compactor (1 part destroyed, 2 dropped) 9459 | -6/Waste | Destroyed C-40 Crusher 9485 | -6/Waste | Spotted C-40 Crusher 9490 | -6/Waste | Lost 4 parts (2n1u1w) 9611 | -6/Waste | Discovered new exit (range 11) 9655 | -6/Waste | Entered Factory 10076 | -6/Factory | Build established: Scavenger-Skirmisher 10230 | -6/Factory | Core integrity fell below 50% 10268 | -6/Factory | Lost 5 parts (2p1n2w) 10400 | -6/Factory | Discovered new exit (range 10) 10407 | -6/Factory | Discovered new exit (range 16) 10411 | -6/Factory | Entered Lower Caves 10504 | -6/Lower Caves | Learned Factory terminal intel 10591 | -6/Lower Caves | Discovered new exit (range 5) 10592 | -6/Lower Caves | Identified exit to Lower Caves 10593 | -6/Lower Caves | Entered another Lower Caves area 10595 | -6/Lower Caves | Discovered new exit (range 14) 10646 | -6/Lower Caves | Attracted the attention of an 0b10 checkpoint 10693 | -6/Lower Caves | Discovered new exit (range 8) 10761 | -6/Lower Caves | Identified exit to Zion 10762 | -6/Lower Caves | Entered Zion 10815 | -6/Zion | Learned location of Armory (-3) 10818 | -6/Zion | Given the Hacking Drone Bay 10868 | -6/Zion | Learned Factory terminal intel 10956 | -6/Zion | Rebuked by Imprinter 11007 | -6/Zion | Found Prototype Special Weapon 11008 | -6/Zion | Found Prototype Special Weapon 11010 | -6/Zion | Found Prototype Special Weapon 11011 | -6/Zion | Found Prototype Special Weapon 11039 | -6/Zion | Found Prototype Device 11039 | -6/Zion | Identified Hacking Drone Bay 11088 | -6/Zion | Discovered new exit (range 7) 11090 | -6/Zion | Identified exit to Proximity Caves 11090 | -6/Zion | Entered Proximity Caves 11105 | -5/Proximity Caves | Learned 8 Factory zone layouts 11105 | -5/Proximity Caves | Identified RU-N14's Throwing Claymores (x4) 11151 | -5/Proximity Caves | Build established: Derelict-Sprinter 11151 | -5/Proximity Caves | Learned location of 1 exit from Upper Caves 11189 | -5/Proximity Caves | Spotted B-75 Beast 11237 | -5/Proximity Caves | Discovered new exit (range 5) 11237 | -5/Proximity Caves | Identified exit to Factory 11238 | -5/Proximity Caves | Entered Factory 11238 | -5/Factory | Evolved 2 slots: Propulsion x1, Utility x1 11240 | -5/Factory | Loaded intel: 26 terminal locations 11251 | -5/Factory | Sucked down chute 11251 | -5/Factory | Entered Waste 11252 | -5/Waste | Joined by Warlord forces that had cleared the area 11256 | -5/Waste | Found Prototype Reactor 11256 | -5/Waste | Identified Vortex Chain Reactor 11281 | -5/Waste | Discovered new exit (range 21) 11468 | -5/Waste | Identified exit to Factory 11468 | -5/Waste | Entered Factory 11469 | -5/Factory | Loaded intel: 25 terminal locations 11486 | -5/Factory | Identified exit to Factory 11530 | -5/Factory | Fabricated Adv. Hardlight Generator (x2) 11860 | -5/Factory | Entered another Factory area 11860 | -4/Factory | Evolved 2 slots: Propulsion x1, Utility x1 11861 | -4/Factory | Identified exit to Extension 11877 | -4/Factory | Identified exit to Upper Caves 11901 | -4/Factory | Identified exit to Research 12025 | -4/Factory | Found Prototype Processor 12025 | -4/Factory | Identified Exp. Signal Interpreter 12134 | -4/Factory | Spotted B-86 Titan 12185 | -4/Factory | Spotted B-86 Titan 12201 | -4/Factory | Fabricated Spectral Analyzer? 12262 | -4/Factory | Build established: Scout 12285 | -4/Factory | Entered Extension 12308 | -4/Extension | Rescued a captive Derelict 12397 | -4/Extension | Rescued a captive Derelict 12470 | -4/Extension | Spotted B-86 Titan 12472 | -4/Extension | Spotted B-86 Titan 12481 | -4/Extension | Rescued a captive Derelict 12484 | -4/Extension | Rescued a captive Derelict 12537 | -4/Extension | Lost 3 parts (1p2u) 12565 | -4/Extension | Rescued a captive Derelict 12574 | -4/Extension | Rescued a captive Derelict 12612 | -4/Extension | Rescued A7 12623 | -4/Extension | Destroyed 14 combat bots 12629 | -4/Extension | Discovered exit to Research (range 10) 12630 | -4/Extension | Discovered new exit (range 6) 12660 | -4/Extension | Disrupted transfer network 12666 | -4/Extension | Entered Cetus 12666 | -4/Cetus | Accompanied by 1 ally (A7) 12671 | -4/Cetus | Acquired a Cetus Manufacturing Module code from A7 12674 | -4/Cetus | Spotted Cetus Guard 12675 | -4/Cetus | Spotted Cetus Guard 12677 | -4/Cetus | Spotted Cetus Guard 12679 | -4/Cetus | Spotted Cetus Guard 12690 | -4/Cetus | Core integrity fell below 50% 12691 | -4/Cetus | Destroyed Cetus Guard 12708 | -4/Cetus | Allies destroyed Cetus Guard 12716 | -4/Cetus | System corruption reached 10% 12720 | -4/Cetus | Core integrity fell below 20% 12722 | -4/Cetus | Allies destroyed Cetus Guard 12732 | -4/Cetus | Allies destroyed Cetus Guard 12742 | -4/Cetus | Lost 9 parts (2p4n2u1w) 12754 | -4/Cetus | System corruption reached 30% 12860 | -4/Cetus | Started Cetus Manufacturing Module 12870 | -4/Cetus | Discovered new exit (range 22) 12885 | -4/Cetus | Manufactured an Enhanced Grunt 12900 | -4/Cetus | Spotted Cetus Guard 12900 | -4/Cetus | Spotted Cetus Guard 12900 | -4/Cetus | Spotted Cetus Guard 12903 | -4/Cetus | Spotted Cetus Guard 12910 | -4/Cetus | Manufactured an Enhanced Grunt 12911 | -4/Cetus | Allies destroyed Cetus Guard 12917 | -4/Cetus | Destroyed Cetus Guard 12926 | -4/Cetus | Allies destroyed Cetus Guard 12929 | -4/Cetus | Destroyed Cetus Guard 12935 | -4/Cetus | Manufactured an Enhanced Grunt 12939 | -4/Cetus | Discovered exit to Research (range 21) 12959 | -4/Cetus | Met Revision 17 12960 | -4/Cetus | Manufactured an Enhanced Grunt 12985 | -4/Cetus | Manufactured an Enhanced Grunt 13009 | -4/Cetus | Found Prototype Device 13009 | -4/Cetus | Identified Exp. Thermal Shield 13030 | -4/Cetus | Build established: Scavenger-Skirmisher 13041 | -4/Cetus | Entered Archives 13041 | -4/Archives | Accompanied by 4 allies (A7) 13106 | -4/Archives | Discovered exit to Research (range 14) 13129 | -4/Archives | Entered Research 13129 | -3/Research | Accompanied by 3 allies 13129 | -3/Research | Evolved 2 slots: Power x1, Utility x1 13131 | -3/Research | Spotted B-86 Titan 13143 | -3/Research | Allies destroyed B-86 Titan 13260 | -3/Research | Discovered new exit (range 17) 13292 | -3/Research | System corruption reached 10% 13297 | -3/Research | Entered another Research area 13297 | -2/Research | Accompanied by 3 allies 13297 | -2/Research | Evolved 2 slots: Weapon x2 13577 | -2/Research | Spotted B-90 Cyclops 13602 | -2/Research | Allies destroyed B-90 Cyclops 13626 | -2/Research | Discovered new exit (range 22) 13676 | -2/Research | Entered Access 13676 | -1/Access | Accompanied by 2 allies 13676 | -1/Access | Evolved 2 slots: Propulsion x2 13868 | -1/Access | Build established: Scavenger-Tank 14306 | -1/Access | Spotted B-99 Colossus 14446 | -1/Access | System corruption reached 10% 14456 | -1/Access | Garrison activated, responded to threat 14486 | -1/Access | Lost 3 parts (2p1n) 14507 | -1/Access | Destroyed B-99 Colossus 14534 | -1/Access | Found Prototype Ballistic Gun 14546 | -1/Access | Found Prototype Ballistic Gun 14562 | -1/Access | Found Hvy. Reflective Plating 14573 | -1/Access | Identified Multirail (x2) 15201 | -1/Access | Found Antimissile System 15206 | -1/Access | Found Antimissile System 15315 | -1/Access | Lost 5 parts (1p1u3w) 15392 | -1/Access | Lost 4 parts (1p2u1w) 15459 | -1/Access | First assault squad dispatched 15556 | -1/Access | Found Antimissile System 15618 | -1/Access | Crushed by falling debris 15618 | -1/Access | System corruption reached 30% 15656 | -1/Access | Lost 7 parts (2p5u) 15674 | -1/Access | Spotted B-99 Colossus 15675 | -1/Access | Spotted B-99 Colossus 15698 | -1/Access | Core integrity fell below 50% 15701 | -1/Access | Discovered new exit (range 5) 15712 | *** | Escaped! Last Messages --------------- 15686_ B-99 Colossus activates siege mode. 15687_ U-05 Engineer builds a Wall. 15688_ Overload: Energy bleed (-27). 15688_ Penetrated by Slug. 15688_ Slug penetrates Sealed Heavy Doors. 15688_ Penetrated by Slug. 15690_ System corrupted: Matter fused (-6). 15691_ Knocked back. 15691_ Penetrated by Slug. 15691_ Adv. Variable Charge Gun destroyed. 15691_ Slug penetrates Sealed Barrier. 15697_ Knocked back. 15697_ Slug penetrates Sealed Heavy Doors. 15697_ Penetrated by Slug. 15697_ Hdn. Centrium Leg destroyed. 15697_ Penetrated by Slug. 15697_ Slug penetrates Sealed Barrier. 15701_ Main Access Shell breached. 15701_ EXIT=FOUND 15705_ System corrupted: Energy discharge (-9). Map ----- +----------------------------------------------------+ | ???????????????????????????+ T" "%%% ##### | | ???????????????????????????# ### | | ???????????????????????????# #?# | | ???????????????????????????#######?# | | ???????????????????????????????????# #### | | ???????????????????????????????????#+###+###+#??## | | ?????????????????????????????????????????????????? | | ?????????????????????????????????????????????????? | | ??????????????????"????"""""?????????????????????? | | ?????????????????"""???"""""?????????????????????? | | ????????????????"""????"""""?????????????????????? | | ???""Y""?????????"?????"""""?????????????????????? | | ???"""""???????????????"""""?????????????????????? | | ?????????????????????????????????????????????????? | | ?????????????????????????????????????????????????? | | ????????????????????Y????????????????????????????? | | ?????????????????????????????????????????????????? | | ?????????????????????????????????????????????????? | | ?????????????????????????????????????????????????? | | ????????????????????"##########??#########???????? | | ????????????????????" %"""" % % ##??????? | | ????????????????????" gggglBB "####???? | | ????????????????????" """"" l""""%BB %""#"##### | | ???????????????????????" "??" % g = | | ???????????????????????" "" g "??"BB | | ???????????????????????" @l "??"BB | | ???????????????????????" "??" | | ???????????????????????"""""" "??" ### ## | | ???????????????????????????? "??" #?# #? | | ???????????????????????????? "??" #?# #? | | ????????????????????????????###??#########?# #? | | ???????????????????????????????????????????# #? | | ???????????????????????????????????????????# #? | | ???????????????????????????????????????????# #? | | ???????????????????????????????????????????# #? | | ???????????????????????????????????????????# #? | | ???????????????????????????????????????????# #? | | ???????????????????????????????????????????+ #? | | ???????????????????????????????????????????? ?? | | ?????????????????????????????????????????????????? | | ?????????????????????????????????????????????????? | | ??????????????????s??????????????????????????????? | | ?????????????????????????????????????????????????? | | ?????????????????????????????????????????????????? | | ?????????????????????????????????????????????????? | | ?????????????????????????????????????????????????? | | ?????????????????????????????????????????????????? | | ?????????????????????????????????????????????????? | | ?????????????????????????????????????????????????? | | ?????????????????????????????????????????????????? | +----------------------------------------------------+ Best States ------------- Heat Dissipation 121 Coolant Potential 50 Energy Generation 65 Energy Capacity 1315 Matter Stores 300 Matter Capacity 300 Sight Range 22 Robot Scan Range 20 Terrain Scan Range 16 Terrain Scan Density 10 ECM Strength 1 Power Amplification 30 Additional Mass Support 12 Armor Coverage 2100 Resistance: TH 30 Resistance: EM 90 Point Defense Rating 240 Evasion (%) 65 Targeting Accuracy 12 Target Analysis 8 Core Analysis 6 Armor Integrity Analysis 30 Recoil Reduction 8 Matter Filtering 50 Kinecelleration 30 Salvage Targeting 2 Offensive Hacking 11 Defensive Hacking 10 Trap Extractor Capacity 8 Item Schematics ----------------- Huge Storage Unit | -10/Materials | Hacked Adv. Hardlight Generator | -6/Zion | Archive Lrn. Missile Launcher | -6/Zion | Archive Hvy. Phase Cannon | -6/Zion | Archive Adv. Heat Sink | -6/Zion | Archive Imp. Thermal Shield | -6/Zion | Archive Adv. Melee Analysis Suite | -6/Zion | Archive Imp. Recalibrator | -6/Zion | Archive Mak. Transmission Jammer | -6/Zion | Archive Antigrav System | -6/Zion | Archive Spk. Medium Treads | -6/Zion | Archive Lgt. Antimatter Reactor | -6/Zion | Archive Recoil Nullifier | -6/Zion | Archive Angular Momentum Engine | -6/Zion | Archive Imp. Kinecellerator | -6/Zion | Archive Adv. Terrain Scanner | -6/Zion | Archive Nanoactuators | -4/Factory | Hacked Robot Schematics ------------------ H-88 Terminator | -6/Zion | Archive L-41 Fighter | -6/Zion | Archive H-66 Slayer | -6/Zion | Archive G-50 Soldier | -6/Zion | Archive Fabricated ------------ Adv. Hardlight Generator | x2 | -5/Factory Spectral Analyzer | x1 | -4/Factory | Preloaded Alien Tech Used ----------------- None Achievements -------------- None Challenges ------------ None Game ------ Seed PoweredExperimentalMediator Manual? 0 Play Time 02:16:51 Cumulative 629.7 hours Start 2022.04.24 @ 09:39:23 End 2022.04.24 @ 12:01:04 Sessions 1 Manual Loads 0 Difficulty Rogue Special Mode None Game No. 424 Rogue 417 Adventurer 0 Explorer 7 Win Type 0 Total 42 Types 14/4/16/2/0/1/3/1/1 Lore% 87 Gallery% 95 Achievement% 82 Wizard Run 0 Options --------- ASCII 0 Keyboard 0 Movement Numpad Keybinds 0 Fullscreen 1 Font 18/X11Bold Map View 76x50 Tactical HUD 1 Map Filters NONE Filters NONE Steam 1 RUN: 8d5aef72-98db-4929-82cb-0d6b26f8a09a